[Event "Austrian Championship 2022"]
[Site "Vienna"]
[Date "2022.08.16"]
[Round "6.13"]
[White "Bauer, Thomas"]
[Black "Borrmann, Laurenz"]
[Result "1-0"]
[ECO "B11"]
[WhiteElo "2228"]
[BlackElo "2274"]
[Annotator "NA"]
[PlyCount "71"]
[EventDate "2022.08.12"]
[EventType "swiss"]
[EventCountry "AUT"]
[SourceTitle "playchess.com"]
[Source "ChessBase"]
[SourceQuality "1"]
[TimeControl "40/5400+30:1800+30"]

1. e4 {[%emt 0:00:02]} c6 {[%emt 0:00:16]} 2. Nc3 {[%emt 0:00:07]} d5 {[%emt 0:00:07]} 3. Nf3 {[%emt 0:00:04]} dxe4 {[%emt 0:00:07]} 4. Nxe4 {[%emt 0:00:06]} Nf6 {[%emt 0:00:10]} 5. Nxf6+ {[%emt 0:00:11]} exf6 {[%emt 0:00:08]} 6. Bc4 {[%emt 0:00:03]} Bd6 {[%emt 0:02:09]} 7. Qe2+ {[%emt 0:00:40]} Be7 {[%emt 0:06:01]} 8. O-O {[%emt 0:00:15]} O-O {[%emt 0:00:47]} 9. Re1 {[%emt 0:00:28]} Bd6 {[%emt 0:06:22]} 10. h3 {[%emt 0:00:28]} Na6 {[%emt 0:08:01]} 11. Bxa6 {[%emt 0:07:15]} bxa6 {[%emt 0:00:07]} 12. d3 {[%emt 0:02:36]} Bf5 {[%emt 0:06:43]} 13. Be3 {[%emt 0:05:43]} Re8 {[%emt 0:02:47]} 14. Qd2 {[%emt 0:08:10]} Qc7 {[%emt 0:06:17]} 15. Qc3 {[%emt 0:03:44]} c5 $11 {[%emt 0:05:16]} 16. Qc4 {[%emt 0:14:20]} Qb6 {[%emt 0:13:10]} 17. b3 {[%emt 0:06:43]} Be6 {[%emt 0:02:40]} 18. Qh4 {[%emt 0:03:52]} Bd5 {[%emt 0:03:35]} 19. Qg4 {[%emt 0:02:21]} Qb4 {[%emt 0:05:21]} 20. c4 {[%emt 0:03:52]} Bc6 {[%emt 0:03:14]} 21. Rad1 {[%emt 0:06:45]} Rad8 {[%emt 0:05:16]} 22. Re2 {[%emt 0:04:25]} Bd7 {[%emt 0:03:14]} 23. Qh5 {[%emt 0:02:09]} Qc3 {[%emt 0:05:35]} 24. d4 {[%emt 0:06:42]} Bc6 {[%emt 0:00:50]} 25. d5 {[%emt 0:03:53]} Bd7 {[%emt 0:00:19]} 26. Ree1 {[%emt 0:03:29]} Re4 {[%emt 0:02:27]} 27. Bd2 {[%emt 0:03:11]} Rxe1+ {[%emt 0:02:05]} 28. Rxe1 {[%emt 0:08:06]} Qc2 {[%emt 0:00:34]} 29. Ba5 {[%emt 0:02:14]} Rb8 {[%emt 0:01:10]} 30. Nd2 {[%emt 0:01:26]} Qxa2 {[%emt 0:02:39]} 31. Bc3 {[%emt 0:00:04]} Re8 {[%emt 0:00:59]} 32. Rxe8+ {[%emt 0:01:45]} Bxe8 {[%emt 0:00:02]} 33. Qf5 {[%emt 0:00:50]} Qa3 {[%emt 0:04:03]} 34. Qc2 {[%emt 0:00:47]} Bd7 {[%emt 0:00:48]} 35. Nb1 {[%emt 0:00:17]} Bf5 {[%emt 0:00:09]} 36. Nxa3 {[%emt 0:00:12]} 1-0

[Event "Austrian Championship 2022"]
[Site "Vienna"]
[Date "2022.08.16"]
[Round "6.14"]
[White "Trkulja, Zoran"]
[Black "Sadilek, Peter"]
[Result "0-1"]
[ECO "B07"]
[WhiteElo "2111"]
[BlackElo "2330"]
[Annotator "RC"]
[PlyCount "53"]
[EventDate "2022.08.12"]
[EventType "swiss"]
[EventCountry "AUT"]
[SourceTitle "playchess.com"]
[Source "ChessBase"]
[SourceQuality "1"]
[TimeControl "40/5400+30:1800+30"]

1. e4 {[%emt 0:00:06]} g6 {[%emt 0:04:20]} 2. d4 {[%emt 0:00:09]} Bg7 {[%emt 0:00:03]} 3. Nc3 {[%emt 0:00:49]} d6 {[%emt 0:00:56]} 4. h4 {[%emt 0:03:22]} Nf6 {[%emt 0:01:36]} 5. f3 {[%emt 0:01:15]} c6 {[%emt 0:01:19]} 6. Be3 {[%emt 0:00:08]} b5 {[%emt 0:07:32]} 7. Qd2 {[%emt 0:05:12]} Nbd7 {[%emt 0:12:49]} 8. a3 {[%emt 0:08:26]} h5 {[%emt 0:06:40]} 9. Nh3 {[%emt 0:07:57]} O-O {[%emt 0:06:55]} 10. Ng5 {[%emt 0:17:59]} a5 {[%emt 0:05:09]} 11. Bd3 {[%emt 0:05:40]} Bb7 {[%emt 0:02:17]} 12. Ne2 {[%emt 0:03:08]} e5 {[%emt 0:00:51]} 13. c3 {[%emt 0:13:04]} d5 {[%emt 0:03:04]} 14. exd5 {[%emt 0:05:59]} Nxd5 {[%emt 0:00:33]} 15. Bf2 {[%emt 0:00:39]} exd4 {[%emt 0:14:45]} 16. cxd4 {[%emt 0:00:54]} Bh6 {[%emt 0:07:53]} 17. f4 {[%emt 0:08:07]} N7f6 {[%emt 0:03:02]} 18. O-O {[%emt 0:04:30]} Ng4 {[%emt 0:02:26]} 19. Nc3 {[%emt 0:04:52]} Ndf6 {[%emt 0:03:17]} 20. Bc2 {[%emt 0:04:02]} Nxf2 {[%emt 0:00:42]} 21. Rxf2 {[%emt 0:00:45]} Ng4 {[%emt 0:07:12]} 22. Re2 {[%emt 0:00:49]} Bg7 {[%emt 0:01:09]} 23. Rd1 {[%emt 0:00:30]} Qb6 {[%emt 0:00:57]} 24. Nf3 {[%emt 0:03:02]} Rad8 {[%emt 0:00:40]} 25. Ne5 {[%emt 0:00:14]} c5 {[%emt 0:01:21]} 26. Ne4 {[%emt 0:00:58]} Rxd4 {[%emt 0:00:40]} 27. Qe1 {[%emt 0:01:24]} 0-1

[Event "Austrian Championship 2022"]
[Site "Vienna"]
[Date "2022.08.16"]
[Round "6.15"]
[White "Neumeier, Klaus"]
[Black "Mayrhuber, Nikola"]
[Result "1-0"]
[ECO "A13"]
[WhiteElo "2257"]
[BlackElo "2141"]
[Annotator "NA RC"]
[PlyCount "119"]
[EventDate "2022.08.12"]
[EventType "swiss"]
[EventCountry "AUT"]
[SourceTitle "playchess.com"]
[Source "ChessBase"]
[SourceQuality "1"]
[TimeControl "40/5400+30:1800+30"]

1. c4 {[%emt 0:00:01]} e6 {[%emt 0:05:54]} 2. g3 {[%emt 0:01:18]} d5 {[%emt 0:00:08]} 3. Bg2 {[%emt 0:00:10]} d4 {[%emt 0:00:23]} 4. Nf3 {[%emt 0:00:30]} Nf6 {[%emt 0:00:30]} 5. O-O {[%emt 0:00:32]} c5 {[%emt 0:01:01]} 6. e3 {[%emt 0:00:23]} Nc6 {[%emt 0:00:07]} 7. exd4 {[%emt 0:00:12]} cxd4 {[%emt 0:00:05]} 8. d3 {[%emt 0:00:08]} Be7 {[%emt 0:03:34]} 9. Na3 {[%emt 0:01:41]} O-O {[%emt 0:00:57]} 10. Re1 {[%emt 0:01:19]} Bd6 {[%emt 0:16:54]} 11. Nc2 {[%emt 0:07:17]} a5 {[%emt 0:04:16]} 12. a3 {[%emt 0:00:46]} e5 {[%emt 0:00:26]} 13. Bd2 {[%emt 0:00:28]} a4 {[%emt 0:05:28]} 14. Bb4 $15 {[%emt 0:02:24]} (14. Nb4 $1 $14) 14... Re8 {[%emt 0:02:08]} 15. Bxd6 {[%emt 0:06:21]} Qxd6 {[%emt 0:02:39]} 16. Qd2 {[%emt 0:00:24]} Nd7 {[%emt 0:02:38]} 17. Ng5 {[%emt 0:04:12]} h6 {[%emt 0:11:55]} 18. Ne4 {[%emt 0:00:56]} Qf8 {[%emt 0:00:06]} 19. g4 {[%emt 0:14:57]} Nc5 {[%emt 0:08:25]} 20. Nxc5 {[%emt 0:00:22]} Qxc5 {[%emt 0:00:06]} 21. h3 {[%emt 0:00:23]} Na5 {[%emt 0:01:57]} 22. Qb4 {[%emt 0:02:06]} Nb3 {[%emt 0:00:31]} 23. Rad1 {[%emt 0:00:45]} Qc7 {[%emt 0:05:51]} 24. Qb5 {[%emt 0:04:07]} Re6 {[%emt 0:06:59]} 25. Qd5 {[%emt 0:03:57]} Ra5 {[%emt 0:03:01]} 26. Qf3 {[%emt 0:00:31]} b5 {[%emt 0:01:00]} 27. c5 {[%emt 0:06:52]} Nxc5 {[%emt 0:01:08]} 28. Nb4 {[%emt 0:00:14]} Bb7 {[%emt 0:00:40]} 29. Qg3 {[%emt 0:00:16]} Bxg2 {[%emt 0:02:00]} 30. Qxg2 {[%emt 0:01:37]} Ra7 {[%emt 0:03:18]} 31. Rc1 {[%emt 0:01:00]} Qd6 {[%emt 0:00:17]} 32. Re2 {[%emt 0:01:56]} Rc7 {[%emt 0:07:52]} 33. Qd5 {[%emt 0:08:57]} Qe7 {[%emt 0:01:31]} 34. Qa8+ {[%emt 0:02:15]} Qe8 {[%emt 0:02:03]} 35. Qxe8+ {[%emt 0:00:21]} Rxe8 {[%emt 0:00:04]} 36. Rec2 {[%emt 0:00:17]} Nxd3 {[%emt 0:01:33]} 37. Rxc7 {[%emt 0:00:19]} Nxc1 {[%emt 0:00:07]} 38. Rxc1 {[%emt 0:00:07]} e4 {[%emt 0:01:03]} 39. Rc5 {[%emt 0:01:40]} e3 {[%emt 0:00:31]} 40. Nd3 {[%emt 0:02:03]} exf2+ {[%emt 0:00:38]} 41. Nxf2 {[%emt 0:30:12]} Re1+ {[%emt 0:30:37]} 42. Kg2 {[%emt 0:00:06]} b4 {[%emt 0:00:00]} 43. axb4 {[%emt 0:00:00]} Re2 {[%emt 0:00:00]} 44. Kf3 {[%emt 0:00:00]} Rxb2 {[%emt 0:00:00]} 45. Nd3 {[%emt 0:00:00]} a3 {[%emt 0:00:00]} 46. Ra5 {[%emt 0:00:00]} Ra2 {[%emt 0:00:00]} 47. Ra8+ {[%emt 0:00:00]} Kh7 {[%emt 0:00:00]} 48. Ke4 {[%emt 0:00:00]} Ra1 {[%emt 0:00:00]} 49. Kxd4 {[%emt 0:00:00]} a2 {[%emt 0:00:00]} 50. Kc4 {[%emt 0:00:00]} h5 {[%emt 0:00:00]} 51. b5 {[%emt 0:00:00]} hxg4 {[%emt 0:00:00]} 52. hxg4 {[%emt 0:00:00]} Kh6 {[%emt 0:00:00]} 53. b6 {[%emt 0:00:00]} Rb1 {[%emt 0:00:49]} 54. Nb4 {[%emt 0:00:00]} a1=Q {[%emt 0:06:20]} 55. Rxa1 {[%emt 0:00:00]} Rxa1 {[%emt 0:00:00]} 56. b7 {[%emt 0:00:00]} Rg1 {[%emt 0:00:00]} 57. b8=Q {[%emt 0:00:00]} Rxg4+ {[%emt 0:00:00]} 58. Kd3 {[%emt 0:00:00]} f5 {[%emt 0:00:00]} 59. Nd5 {[%emt 0:00:00]} Re4 {[%emt 0:00:00]} 60. Qf8 {[%emt 0:00:00]} 1-0

[Event "Austrian Championship 2022"]
[Site "Vienna"]
[Date "2022.08.16"]
[Round "6.16"]
[White "Teuschler, Barbara"]
[Black "Lerch, Johannes"]
[Result "0-1"]
[ECO "C54"]
[WhiteElo "2097"]
[BlackElo "2222"]
[Annotator "TA"]
[PlyCount "126"]
[EventDate "2022.08.12"]
[EventType "swiss"]
[EventCountry "AUT"]
[SourceTitle "playchess.com"]
[Source "ChessBase"]
[SourceQuality "1"]
[TimeControl "40/5400+30:1800+30"]

{[%evp 14,126,5,0,17,5,9,11,24,31,22,12,39,40,50,49,43,48,76,62,73,60,92,35,89,71,111,99,86,66,64,68,68,55,69,21,45,28,42,31,49,39,46,32,72,31,39,36,77,70,63,58,84,0,0,0,14,14,14,12,168,-281,-179,-165,-157,-158,-156,-210,0,-102,-60,-278,-171,-164,-81,-81,-51,-188,-158,-134,0,-696,-687,-5173,-2172,-2404,-133,-112,-56,-49,0,-29974,-29975,-29974,-29975,-29975,-29958,-29970,-29969,-29959,-29959,-29982,-29983,-29980,-5065,-5085,-1813,-1088,0,-1374,0,-29974,-12831,-29988,-29989]} 1. e4 {[%emt 0:00:02]} e5 {[%emt 0:00:04]} 2. Nf3 {[%emt 0:00:03]} Nc6 {[%emt 0:00:05]} 3. Bc4 {[%emt 0:00:03]} Bc5 {[%emt 0:00:05]} 4. c3 {[%emt 0:00:04]} Nf6 {[%emt 0:00:05]} 5. d3 {[%emt 0:00:03]} d6 {[%emt 0:00:33]} 6. O-O {[%emt 0:00:17]} h6 {[%emt 0:00:13]} 7. Bb3 {[%emt 0:00:04]} O-O {[%emt 0:00:41]} 8. h3 {[%emt 0:00:16]} Bb6 {[%emt 0:00:14] C54: Giuoco Piano: 4 c3 Nf6, main lines with 5 d4 and 5 d3.} 9. Re1 {[%emt 0:00:18]} Ne7 {[%emt 0:01:02][%cal Bc6e7,Be7g6,Bg6f4][%mdl 32]} 10. Nbd2 {[%emt 0:00:12] [#]} c5 $146 {[%emt 0:00:44] The position is equal.} ({Predecessor:} 10... Ng6 11. Nc4 Be6 12. Bc2 Bxc4 13. dxc4 Nh5 14. b4 Qf6 15. a4 a5 16. Ba3 Nhf4 {½-½ (39) Volokitin,A (2677)-Caruana,F (2792) Warsaw 2021}) 11. Nf1 {[%emt 0:01:02]} Ng6 {[%emt 0:01:30]} 12. Ne3 {[%emt 0:06:58]} Bd7 {[%emt 0:03:28]} 13. Nh2 {[%emt 0:07:50]} Re8 {[%emt 0:09:47]} 14. Nhg4 {[%emt 0:04:49]} Nf4 {[%emt 0:14:56]} 15. Nf5 {[%emt 0:16:08]} Bxf5 {[%emt 0:36:57]} 16. exf5 {[%emt 0:00:06]} N4h5 {[%emt 0:02:05]} 17. Qf3 {[%emt 0:14:24][%cal Oc1h6]} Re7 {[%emt 0:00:29]} 18. Nh2 {[%emt 0:06:48]} (18. Nxf6+ $16 Nxf6 19. Qg3) 18... Qd7 {[%emt 0:07:40]} (18... d5 $14) 19. g4 $16 {[%emt 0:02:59]} Nf4 {[%emt 0:00:05]} 20. Bxf4 {[%emt 0:00:41]} (20. h4 {looks sharper.} Nh7 21. f6 Nxf6 22. Bxf4 exf4 23. g5) 20... exf4 {[%emt 0:00:05]} 21. Qxf4 {[%emt 0:00:17]} d5 {[%emt 0:04:01]} 22. Ba4 {[%emt 0:05:09]} Qd8 {[%emt 0:00:32]} 23. Qd2 {[%emt 0:00:33]} Bc7 {[%emt 0:00:44]} 24. Nf1 {[%emt 0:01:39]} (24. Nf3 $14) 24... a6 {[%emt 0:02:01]} 25. Rxe7 {[%emt 0:00:31]} Qxe7 {[%emt 0:00:02]} 26. Re1 {[%emt 0:00:06]} Qd6 {[%emt 0:00:10]} 27. Bd1 {[%emt 0:00:46]} d4 {[%emt 0:04:47]} 28. c4 {[%emt 0:01:33]} b5 {[%emt 0:01:17]} 29. b3 {[%emt 0:00:39]} (29. Bf3 $5 {[%cal Rf3a8]} Rb8 30. b3 $14) 29... bxc4 {[%emt 0:01:10]} 30. bxc4 {[%emt 0:00:15]} Rb8 {[%emt 0:00:39]} 31. Bf3 {[%emt 0:13:32]} Kf8 {[%emt 0:00:35]} 32. Kg2 {[%emt 0:03:32]} a5 {[%emt 0:06:23]} 33. Bd1 {[%emt 0:09:52]} (33. Ng3 $16) 33... Qc6+ $1 $11 {[%emt 0:00:01]} 34. Kg1 {[%emt 0:00:06]} Nh7 {[%emt 0:01:18][%cal Bf6h7,Bh7g5,Bg5f3][%mdl 32]} 35. Ng3 {[%emt 0:02:34]} (35. Qe2 $2 Ng5 36. Ng3 Nxh3+ 37. Kh2 Nf4 38. Qe7+ Kg8 $19) 35... Ng5 {[%emt 0:01:12]} 36. Kh2 {[%emt 0:00:13]} (36. Qe2 $2 Nxh3+ 37. Kh2 Nf4 38. Qe7+ Kg8 $19) 36... Rb1 $2 {[%emt 0:00:51]} (36... Nf3+ $11 37. Bxf3 Qxf3) 37. Be2 $4 {[%emt 0:00:09][%mdl 8192]} (37. f4 Rxd1 $1 {[%mdl 512]} 38. Qxd1 Nf3+ 39. Kh1 Nxe1+ $17) (37. h4 $1 $18 {[%cal Rh4g5]} Rxd1 38. Qxd1 Nf3+ 39. Kh3 Nxe1 40. Qxe1) 37... Rxe1 {[%emt 0:01:05]} 38. Qxe1 {[%emt 0:00:02]} Nf3+ $1 {[%emt 0:01:07]} 39. Bxf3 {[%emt 0:00:01]} Qxf3 $17 {[%emt 0:00:01][%mdl 4096] Endgame KQB-KQN} 40. Kg1 {[%emt 0:05:10]} (40. Qd2 $17 {might work better.}) 40... Qxd3 $2 {[%emt 0:00:46]} (40... Bxg3 $19 41. fxg3 Qxd3) 41. Qe2 {[%emt 0:30:08]} (41. f6 $1 $11 {remains equal.} Bxg3 42. Qe7+ Kg8 43. Qe8+ Kh7 44. Qxf7) 41... Qb1+ {[%emt 0:01:41]} ({But not} 41... Qxe2 $6 42. Nxe2 Ke7 43. Nc1 $11) 42. Kg2 $2 {[%emt 0:00:00]} (42. Nf1 $1 $15) 42... Bxg3 {[%emt 0:02:36]} 43. Kxg3 $19 {[%emt 0:00:00] KQ-KQ} Qb8+ {[%emt 0:04:55]} (43... Qg1+ $1 $19 44. Kf3 Qh2) 44. Kg2 $17 {[%emt 0:00:00]} Qf4 {[%emt 0:01:53] Inhibits Qe4.} 45. Qe1 {[%emt 0:00:00]} (45. Qf3 $15 Qc7 46. f6) 45... d3 $1 $19 {[%emt 0:05:53] ...d2 is the strong threat.} 46. Qxa5 {[%emt 0:00:00][%cal Ra5d8]} Qe4+ {[%emt 0:00:10]} (46... Qd4 $17 47. Qa8+ Ke7 48. Qb7+ Kf6 49. Qb6+ Kg5) 47. Kh2 $2 {[%emt 0:00:00][%mdl 8192]} (47. Kg3 $11 Kg8 48. Qd8+ (48. Qxc5 $2 d2 $19) 48... Kh7 49. Qd7) 47... Kg8 {[%emt 0:00:44] Threatens to win with ...Qf4+.} 48. Qd8+ {[%emt 0:00:00]} Kh7 {[%emt 0:00:12]} 49. f6 {[%emt 0:00:00]} gxf6 $2 {[%emt 0:00:11]} (49... Qd4 $19 50. Qa8 d2) 50. Qxf6 $17 {[%emt 0:00:00] [#]} Qxc4 {[%emt 0:01:25]} (50... Qe6 $1 $17 {[%cal Re6f6]} 51. Qd8 Qxc4) 51. g5 $15 {[%emt 0:00:00]} hxg5 {[%emt 0:10:46]} (51... Qxa2 52. gxh6) (51... Qd5 $15 52. g6+ fxg6 53. Qe7+ Kg8 54. Qe8+ Kg7 55. Qe7+ Kg8 56. Qe8+ Kg7 57. Qe7+ Qf7 58. Qxc5 Qd7 59. Qc3+ Kf7 60. Qc4+ Ke7 61. Qe4+ Kf7 62. Qc4+ Ke8 63. Qe4+ (63. Qg8+ Ke7 $11) 63... Kf7 64. Qc4+) 52. Qxg5 $2 {[%emt 0:00:00][%mdl 8192]} (52. Qf5+ $11 Kh6 53. Qf6+ Kh5 54. Kg2) 52... Qd4 {[%emt 0:03:30]} 53. Qh5+ {[%emt 0:00:00]} Kg8 {[%emt 0:00:14]} 54. Qg5+ {[%emt 0:00:00]} Kf8 {[%emt 0:00:10]} 55. Qh6+ {[%emt 0:00:00]} Ke7 {[%emt 0:00:18]} 56. Qg5+ {[%emt 0:00:00]} Kd7 {[%emt 0:00:40]} 57. Qf5+ {[%emt 0:00:00]} Kd6 {[%emt 0:00:09]} 58. Qxf7 {[%emt 0:00:00]} Qe5+ {[%emt 0:01:29]} (58... d2 $142 59. Qf8+ Kc7 60. Qe7+ Kb6 61. Qe6+ Ka5 62. Qf7 d1=Q 63. Qa7+ Kb4 64. Qb8+ Ka3 65. Qa8+ Kb2 66. Qb8+ Ka3 67. Qa8+ Kb2 68. Qb8+ Ka3) 59. Kg1 {[%emt 0:00:00]} Qe1+ {[%emt 0:00:08]} (59... d2 $142 60. Qf8+ Kd5 61. Qd8+ Qd6 62. Qa8+ Kd4 63. Qa4+ c4) 60. Kg2 $19 {[%emt 0:00:00]} d2 $2 {[%emt 0:00:57]} ({Better is} 60... Qe4+ $19 61. Kg1 d2 62. Qf6+ Kd7 63. Qf7+ Qe7 64. Qd5+ Qd6 65. Qf7+ Kc6 66. Qf3+ Qd5 67. Qf6+ Kb5 68. Qb2+ Ka4 69. Qc2+ Ka3) 61. Qf6+ $2 {[%emt 0:00:00][%mdl 8192] [#]} (61. Qf4+ $11 Kd5 62. Qg5+ Kc6 63. Qg6+ Kb5 64. Qd3+ c4 65. Qd7+ Kc5 66. Qc7+ Kd4 67. Qd6+ Kc3 68. Qa3+ Kd4 69. Qd6+ Ke4 70. Qe6+ Kd4 71. Qd6+) 61... Kd5 $2 {[%emt 0:00:23]} ({Black should try} 61... Kd7 $1 $19 {( -> ...Qe4+)} 62. Qf7+ Qe7 63. Qd5+ Qd6 64. Qb7+ Kd8 65. Qa8+ Ke7 66. Qe4+ Kd8 67. Qa8+ Ke7 68. Qe4+ Qe6 69. Qb7+ Qd7 70. Qe4+ Kd8 71. Qh4+ Kc7) 62. Qf5+ {[%emt 0:00:00][%mdl 8192]} (62. Qd8+ $11 Kc4 63. Qg8+ Kc3 64. Qb3+ Kd4 65. Qb2+ Ke4 66. Qb7+ Kf4 67. Qf7+ Kg5 68. Qg7+ Kh5 69. Qh7+ Kg5 70. Qg7+ Kf5 71. Qf7+ Ke4 72. Qg6+ Ke5 73. Qg3+ Ke6 74. Qg8+ Kd6 75. Qd8+ Kc6 76. Qc8+ Kd5 77. Qd7+ Ke4 78. Qe6+ Kd4 79. Qd6+ Kc3 80. Qxc5+ Kb2 81. Qb4+ Ka1 82. Qc3+ Kxa2 83. Qa5+ Kb1 84. Qb5+ Kc2 85. Qa4+ Kc3 86. Qc6+ Kd4 87. Qd6+ Ke4 88. Qe7+ Kf5 89. Qf7+ Ke5 90. Qe7+ Kf5 91. Qf7+ Kg5 92. Qg7+ Kf4 93. Qf7+ Kg5 94. Qg7+ Kh5 95. Qh7+ Kg5 96. Qg7+) 62... Kd4 {[%emt 0:00:42]} 63. Qf6+ {[%emt 0:00:00]} Qe5 {[%emt 0:00:37] Weighted Error Value: White=0.90/Black=0.62} 0-1

[Event "Austrian Championship 2022"]
[Site "Vienna"]
[Date "2022.08.16"]
[Round "6.17"]
[White "Hoegl, Emanuel"]
[Black "Steiner, Adam"]
[Result "1/2-1/2"]
[ECO "E04"]
[WhiteElo "2094"]
[BlackElo "2226"]
[Annotator "TA"]
[PlyCount "97"]
[EventDate "2022.08.12"]
[EventType "swiss"]
[EventCountry "AUT"]
[SourceTitle "playchess.com"]
[Source "ChessBase"]
[SourceQuality "1"]
[TimeControl "40/5400+30:1800+30"]

{[%evp 20,97,15,18,12,14,24,26,33,11,7,0,9,0,0,0,0,0,1,0,0,0,5,8,16,15,30,39,141,123,136,144,129,139,144,122,122,123,121,122,117,104,236,127,125,129,126,125,127,128,141,108,120,70,80,80,77,75,78,80,85,34,34,34,34,4,27,0,0,0,27,12,14,12,12,0,0,0,0,0]} 1. d4 {[%emt 0:00:01]} d5 {[%emt 0:02:06]} 2. c4 {[%emt 0:00:07]} e6 {[%emt 0:00:07]} 3. Nf3 {[%emt 0:00:04]} Nf6 {[%emt 0:00:06]} 4. g3 {[%emt 0:00:03]} dxc4 {[%emt 0:00:37]} 5. Bg2 {[%emt 0:00:30]} c5 {[%emt 0:00:14]} 6. O-O {[%emt 0:01:21]} Nc6 {[%emt 0:00:18]} 7. dxc5 {[%emt 0:00:16]} Qxd1 {[%emt 0:00:29]} 8. Rxd1 {[%emt 0:00:04]} Bxc5 {[%emt 0:00:07]} 9. Nbd2 {[%emt 0:01:54][%cal Bb1d2,Bd2b3,Bb3c5][%mdl 32]} c3 {[%emt 0:00:33]} 10. bxc3 {[%emt 0:00:04][%cal Bb2c3,Bc3d4,Bd4d5][%mdl 32]} O-O {[%emt 0:00:32]} 11. Nb3 {[%emt 0:02:29]} Be7 {[%emt 0:00:25] E04: Open Catalan: 5 Nf3.} 12. Nfd4 {[%emt 0:03:42]} Nxd4 {[%emt 0:00:33]} 13. cxd4 {[%emt 0:01:14]} Nd5 {[%emt 0:00:20] White has an edge.} 14. Bb2 {[%emt 0:04:05]} Bd7 {[%emt 0:13:31]} 15. Nc5 {[%emt 0:38:01]} Bc6 {[%emt 0:01:48]} 16. Rac1 {[%emt 0:02:00][%cal Ba1c1,Bc1c5,Bc5c2,Bc2b2,Bb2b7,Bb7a7][%mdl 32] [#]} Rac8 $146 {[%emt 0:07:53]} ({Predecessor:} 16... Rfd8 17. e3 Rac8 18. Bf1 b6 19. Nd3 Ba4 20. Re1 Nb4 21. Nxb4 Bxb4 22. Ba6 Bxe1 23. Bxc8 {½-½ (58) Miton,K (2601)-Hoepfl,T (2296) Wroclaw 2014}) 17. e4 {[%emt 0:18:19]} Nb6 {[%emt 0:04:06]} 18. d5 {[%emt 0:00:57]} Bxc5 {[%emt 0:03:36]} 19. Rxc5 {[%emt 0:15:13]} Na4 {[%emt 0:01:56][%csl LRb2,LRc5]} 20. Rc2 {[%emt 0:00:20]} Nxb2 {[%emt 0:06:02]} 21. Rxb2 {[%emt 0:00:05]} Ba4 {[%emt 0:11:46]} 22. Rd4 {[%emt 0:03:26]} Rc1+ {[%emt 0:05:03]} 23. Bf1 {[%emt 0:00:05]} Bd7 {[%emt 0:00:02]} (23... b5 $14) 24. Rxb7 $16 {[%emt 0:03:00]} Bc8 {[%emt 0:08:38]} 25. Rxa7 {[%emt 0:00:04]} exd5 {[%emt 0:00:27] ( -> ...Bh3)} 26. Kg2 {[%emt 0:00:43] Against Bh3+} (26. exd5 $2 {gets mated.} Bh3) 26... dxe4 {[%emt 0:08:27] [#]} 27. Bc4 {[%emt 0:00:07][%cal Oa7f7] Hoping for Rxf7!} g5 {[%emt 0:09:07][%cal Oe4e3]} 28. Rxe4 {[%emt 0:03:23]} Bf5 {[%emt 0:00:36]} 29. Re5 {[%emt 0:01:17]} Bg6 {[%emt 0:00:25]} 30. Bb3 {[%emt 0:00:19]} ({Resist} 30. Rc7 Kh8 $16) 30... g4 {[%emt 0:00:34]} (30... h6 $16 {was necessary.} 31. h4 gxh4) 31. h3 {[%emt 0:01:12]} ({White must play} 31. Rg5 $18) 31... gxh3+ {[%emt 0:12:31]} 32. Kxh3 {[%emt 0:00:04]} Kg7 {[%emt 0:00:01]} 33. Ree7 {[%emt 0:00:46]} h5 {[%emt 0:03:02]} 34. Kg2 {[%emt 0:00:28]} Rc6 {[%emt 0:00:23]} 35. Bd5 {[%emt 0:00:58]} Rf6 {[%emt 0:00:24]} 36. Be4 {[%emt 0:00:36] 0x0.00144ea8fc7cdp-1022s more active pieces.} (36. Re6 $16) 36... Rh8 {[%emt 0:00:12]} 37. Bxg6 {[%emt 0:00:32]} Kxg6 {[%emt 0:00:02][%mdl 4096] Endgame KRR-KRR} 38. Ra4 {[%emt 0:00:41]} Rc8 {[%emt 0:00:39]} 39. Re2 {[%emt 0:00:38] Inhibits Rc2.} Rc1 {[%emt 0:00:51]} 40. Rae4 {[%emt 0:00:44]} (40. Rd2 $16) 40... Ra6 {[%emt 0:00:47]} 41. Rb2 {[%emt 0:04:34]} Ra1 {[%emt 0:02:59]} 42. Ree2 {[%emt 0:00:49]} f6 {[%emt 0:05:48]} 43. Kf3 {[%emt 0:07:30]} Ra3+ {[%emt 0:00:34]} 44. Kg2 {[%emt 0:04:06]} Ra6 {[%emt 0:00:12] Inhibits Rb6.} 45. Rec2 {[%emt 0:00:34]} Ra5 {[%emt 0:01:26] The position is equal.} 46. Rd2 {[%emt 0:00:53]} Ra7 {[%emt 0:06:36]} 47. f4 {[%emt 0:08:17]} Ra3 {[%emt 0:11:53]} 48. Kh2 {[%emt 0:01:16]} Ra7 {[%emt 0:01:54]} 49. Kg2 {[%emt 0:03:16] White really could win this.  Weighted Error Value: White=0.13 (very precise) /Black=0.12 (very precise)} 1/2-1/2

[Event "Austrian Championship 2022"]
[Site "Vienna"]
[Date "2022.08.16"]
[Round "6.18"]
[White "Wagner, Leopold Franziskus"]
[Black "Gschiel, Alexander"]
[Result "1/2-1/2"]
[ECO "D02"]
[WhiteElo "2080"]
[BlackElo "2215"]
[Annotator "NA RC"]
[PlyCount "81"]
[EventDate "2022.08.12"]
[EventType "swiss"]
[EventCountry "AUT"]
[SourceTitle "playchess.com"]
[Source "ChessBase"]
[SourceQuality "1"]
[TimeControl "40/5400+30:1800+30"]

1. d4 {[%emt 0:00:23]} d5 {[%emt 0:00:15]} 2. Nf3 {[%emt 0:00:08]} Nf6 {[%emt 0:00:09]} 3. Bf4 {[%emt 0:00:09]} e6 {[%emt 0:00:11]} 4. e3 {[%emt 0:00:22]} Bd6 {[%emt 0:00:26]} 5. Bg3 {[%emt 0:00:13]} c5 {[%emt 0:00:48]} 6. c3 {[%emt 0:00:15]} O-O {[%emt 0:01:40]} 7. Nbd2 {[%emt 0:00:48]} Bxg3 {[%emt 0:01:01]} 8. hxg3 {[%emt 0:00:02]} Nbd7 {[%emt 0:00:44]} 9. Bd3 {[%emt 0:00:26]} h6 {[%emt 0:05:41]} 10. Ne5 {[%emt 0:06:02]} Nxe5 {[%emt 0:10:36]} 11. dxe5 {[%emt 0:00:02]} Nd7 {[%emt 0:00:18]} 12. Qh5 {[%emt 0:00:34]} f6 {[%emt 0:00:50]} 13. f4 {[%emt 0:12:27]} fxe5 {[%emt 0:13:43]} 14. fxe5 {[%emt 0:00:09]} c4 {[%emt 0:00:14]} 15. Bc2 {[%emt 0:03:19]} Qb6 {[%emt 0:07:09]} 16. O-O-O {[%emt 0:00:51]} Qxe3 {[%emt 0:13:59]} 17. Qg6 {[%emt 0:04:53]} Qg5 {[%emt 0:03:08]} 18. Qxe6+ {[%emt 0:01:32]} Kh8 {[%emt 0:00:14]} 19. Rdf1 {[%emt 0:02:47]} Rxf1+ {[%emt 0:11:21]} 20. Rxf1 {[%emt 0:00:06]} Qd8 {[%emt 0:00:30]} 21. Qg6 {[%emt 0:00:26]} Qg8 {[%emt 0:00:05]} 22. e6 {[%emt 0:48:30]} Ne5 {[%emt 0:01:38]} 23. Qh5 {[%emt 0:05:20]} Nd3+ {[%emt 0:02:41]} 24. Bxd3 {[%emt 0:00:01]} cxd3 {[%emt 0:00:10]} 25. e7 {[%emt 0:00:05]} Bd7 {[%emt 0:00:29]} 26. Qf3 {[%emt 0:02:11]} Re8 {[%emt 0:01:23]} 27. Qe3 {[%emt 0:04:58]} b6 {[%emt 0:02:32]} 28. Nb3 {[%emt 0:01:27]} Bb5 {[%emt 0:04:53]} 29. Re1 {[%emt 0:04:05]} d4 {[%emt 0:01:03]} 30. Qxd4 {[%emt 0:02:16]} Qf7 {[%emt 0:00:24]} 31. Nd2 {[%emt 0:00:36]} Qxa2 {[%emt 0:04:18]} 32. c4 {[%emt 0:00:12]} Qa1+ {[%emt 0:02:07]} 33. Nb1 {[%emt 0:00:01]} Qa4 {[%emt 0:00:08]} 34. Qxd3 {[%emt 0:00:31]} Qxc4+ {[%emt 0:01:28]} 35. Qxc4 {[%emt 0:00:00]} Bxc4 {[%emt 0:00:07]} 36. Nc3 {[%emt 0:00:36]} Kg8 {[%emt 0:00:36]} 37. Re4 {[%emt 0:00:37]} Bf1 {[%emt 0:01:08]} 38. Re1 {[%emt 0:00:22]} Ba6 {[%emt 0:01:40]} 39. Nd5 {[%emt 0:00:41]} Rc8+ {[%emt 0:00:53]} 40. Kd2 {[%emt 0:00:37]} Bb5 {[%emt 0:00:20]} 41. Ra1 {[%emt 0:08:55]} 1/2-1/2